[Event "British Rapidplay Championship 2023"]
[Site "Mercure Bradford, Bankfield Hotel"]
[Date "2023.04.16"]
[Round "8.1"]
[White "Ghasi, Ameet K"]
[Black "Eckersley-Waites, Tom"]
[Result "1-0"]
[TimeControl "15 minutes plus 10 seconds per move"]
[WhiteElo "2631"]
[BlackElo "2304"]

1. Nf3 {[%clk 00:14:32]} {[%emt 00:00:47]} d5 {[%clk 00:15:18]} {[%emt
00:00:02]} 2. g3 {[%clk 00:14:39]} {[%emt 00:00:03]} Nf6 {[%clk 00:15:27]}
{[%emt 00:00:02]} 3. Bg2 {[%clk 00:14:47]} {[%emt 00:00:01]} g6 {[%clk
00:15:15]} {[%emt 00:00:22]} 4. O-O {[%clk 00:14:51]} {[%emt 00:00:06]} Bg7
{[%clk 00:15:23]} {[%emt 00:00:01]} 5. d3 {[%clk 00:15:00]} {[%emt 00:00:02]}
a5 {[%clk 00:15:28]} {[%emt 00:00:05]} 6. c4 {[%clk 00:12:08]} {[%emt
00:03:02]} O-O {[%clk 00:15:09]} {[%emt 00:00:29]} 7. cxd5 {[%clk 00:11:35]}
{[%emt 00:00:44]} Nxd5 {[%clk 00:15:18]} {[%emt 00:00:01]} 8. d4 {[%clk
00:11:43]} {[%emt 00:00:01]} Nb6 {[%clk 00:14:33]} {[%emt 00:00:54]} 9. Nc3
{[%clk 00:11:33]} {[%emt 00:00:21]} Nc6 {[%clk 00:14:41]} {[%emt 00:00:02]} 10.
e3 {[%clk 00:11:34]} {[%emt 00:00:08]} a4 {[%clk 00:14:37]} {[%emt 00:00:15]}
11. Qe2 {[%clk 00:08:31]} {[%emt 00:03:13]} Be6 {[%clk 00:13:05]} {[%emt
00:01:42]} 12. Nd2 {[%clk 00:07:43]} {[%emt 00:00:58]} Qd7 {[%clk 00:11:17]}
{[%emt 00:01:59]} 13. Rd1 {[%clk 00:05:01]} {[%emt 00:02:51]} Bg4 {[%clk
00:10:20]} {[%emt 00:01:07]} 14. f3 {[%clk 00:04:44]} {[%emt 00:00:28]} Bh3
{[%clk 00:10:28]} {[%emt 00:00:01]} 15. Bxh3 {[%clk 00:04:51]} {[%emt
00:00:03]} Qxh3 {[%clk 00:10:35]} {[%emt 00:00:03]} 16. Nde4 {[%clk 00:04:58]}
{[%emt 00:00:02]} Rfd8 {[%clk 00:09:51]} {[%emt 00:00:55]} 17. f4 {[%clk
00:04:58]} {[%emt 00:00:10]} Nb4 {[%clk 00:07:45]} {[%emt 00:02:16]} 18. Bd2
{[%clk 00:04:28]} {[%emt 00:00:40]} c6 {[%clk 00:06:37]} {[%emt 00:01:18]} 19.
Rac1 {[%clk 00:04:17]} {[%emt 00:00:22]} a3 {[%clk 00:06:32]} {[%emt 00:00:15]}
20. b3 {[%clk 00:02:35]} {[%emt 00:01:51]} h5 {[%clk 00:05:49]} {[%emt
00:00:53]} 21. Be1 {[%clk 00:02:36]} {[%emt 00:00:10]} Qf5 {[%clk 00:04:03]}
{[%emt 00:01:54]} 22. Nc5 {[%clk 00:02:44]} {[%emt 00:00:03]} Ra7 {[%clk
00:03:25]} {[%emt 00:00:48]} 23. Nb1 {[%clk 00:02:37]} {[%emt 00:00:17]} N6d5
{[%clk 00:02:20]} {[%emt 00:01:16]} 24. e4 {[%clk 00:01:51]} {[%emt 00:00:56]}
Qg4 {[%clk 00:02:28]} {[%emt 00:00:02]} 25. Qxg4 {[%clk 00:01:21]} {[%emt
00:00:39]} hxg4 {[%clk 00:02:36]} {[%emt 00:00:01]} 26. exd5 {[%clk 00:01:30]}
{[%emt 00:00:02]} Nxa2 {[%clk 00:02:44]} {[%emt 00:00:03]} 27. Rc2 {[%clk
00:01:34]} {[%emt 00:00:05]} Nb4 {[%clk 00:02:51]} {[%emt 00:00:03]} 28. Bxb4
{[%clk 00:01:43]} {[%emt 00:00:01]} a2 {[%clk 00:03:00]} {[%emt 00:00:02]} 29.
Bc3 {[%clk 00:00:32]} {[%emt 00:01:20]} Rxd5 {[%clk 00:03:09]} 30. Nd2 {[%clk
00:00:18]} {[%emt 00:00:25]} Rxc5 {[%clk 00:03:12]} {[%emt 00:00:06]} 31. dxc5
{[%clk 00:00:23]} {[%emt 00:00:05]} Bxc3 {[%clk 00:03:18]} {[%emt 00:00:05]} 32.
Rxc3 {[%clk 00:00:29]} {[%emt 00:00:04]} a1=Q {[%clk 00:03:15]} {[%emt
00:00:14]} 33. Rxa1 {[%clk 00:00:37]} Rxa1+ {[%clk 00:03:23]} {[%emt 00:00:02]}
34. Kf2 {[%clk 00:00:33]} {[%emt 00:00:14]} Ra2 {[%clk 00:02:52]} {[%emt
00:00:41]} 35. Ke3 {[%clk 00:00:35]} {[%emt 00:00:08]} f5 {[%clk 00:02:45]}
{[%emt 00:00:17]} 36. Rd3 {[%clk 00:00:43]} {[%emt 00:00:02]} Rc2 {[%clk
00:02:46]} {[%emt 00:00:09]} 37. b4 {[%clk 00:00:28]} {[%emt 00:00:26]} Kf7
{[%clk 00:02:41]} {[%emt 00:00:14]} 38. Rd7 {[%clk 00:00:34]} {[%emt 00:00:04]}
Rc1 {[%clk 00:02:32]} {[%emt 00:00:20]} 39. Ke2 {[%clk 00:00:43]} {[%emt
00:00:01]} Rg1 {[%clk 00:02:30]} {[%emt 00:00:11]} 40. Nf1 {[%clk 00:00:38]}
{[%emt 00:00:15]} Rg2+ {[%clk 00:02:39]} {[%emt 00:00:01]} 41. Ke1 {[%clk
00:00:47]} {[%emt 00:00:01]} Ke6 {[%clk 00:02:15]} {[%emt 00:00:34]} 42. Rxb7
{[%clk 00:00:56]} {[%emt 00:00:01]} Kd5 {[%clk 00:02:20]} {[%emt 00:00:05]} 43.
Ne3+ {[%clk 00:01:05]} 1-0

[Event "British Rapidplay Championship 2023"]
[Site "Mercure Bradford, Bankfield Hotel"]
[Date "2023.04.16"]
[Round "8.2"]
[White "Gormally, Daniel W"]
[Black "Surtees, Mike J"]
[Result "1-0"]
[TimeControl "15 minutes plus 10 seconds per move"]
[WhiteElo "2570"]
[BlackElo "2111"]

1. d4 {[%clk 00:15:17]} {[%emt 00:00:02]} c6 {[%clk 00:15:19]} {[%emt
00:00:02]} 2. c4 {[%clk 00:15:25]} {[%emt 00:00:03]} f5 {[%clk 00:15:27]}
{[%emt 00:00:01]} 3. Nc3 {[%clk 00:15:28]} {[%emt 00:00:08]} Nf6 {[%clk
00:15:35]} {[%emt 00:00:01]} 4. Bg5 {[%clk 00:15:32]} {[%emt 00:00:06]} Ne4
{[%clk 00:15:41]} {[%emt 00:00:03]} 5. Nxe4 {[%clk 00:15:23]} {[%emt 00:00:20]}
fxe4 {[%clk 00:15:48]} {[%emt 00:00:03]} 6. Qd2 {[%clk 00:15:31]} {[%emt
00:00:03]} h6 {[%clk 00:15:33]} {[%emt 00:00:24]} 7. Bh4 {[%clk 00:15:29]}
{[%emt 00:00:12]} g5 {[%clk 00:15:00]} {[%emt 00:00:43]} 8. Bg3 {[%clk
00:15:38]} {[%emt 00:00:01]} d6 {[%clk 00:15:02]} {[%emt 00:00:08]} 9. e3
{[%clk 00:15:40]} {[%emt 00:00:08]} Bg7 {[%clk 00:14:44]} {[%emt 00:00:28]} 10.
Ne2 {[%clk 00:15:48]} {[%emt 00:00:02]} Bf5 {[%clk 00:14:33]} {[%emt 00:00:21]}
11. Nc3 {[%clk 00:15:33]} {[%emt 00:00:25]} Nd7 {[%clk 00:14:35]} {[%emt
00:00:09]} 12. Be2 {[%clk 00:15:42]} Nf6 {[%clk 00:14:14]} {[%emt 00:00:31]} 13.
O-O {[%clk 00:15:50]} {[%emt 00:00:02]} O-O {[%clk 00:13:28]} {[%emt 00:00:56]}
14. f3 {[%clk 00:15:59]} {[%emt 00:00:01]} Qd7 {[%clk 00:13:26]} {[%emt
00:00:13]} 15. f4 {[%clk 00:13:57]} {[%emt 00:02:12]} gxf4 {[%clk 00:09:02]}
{[%emt 00:04:33]} 16. Bxf4 {[%clk 00:14:05]} {[%emt 00:00:02]} Kh8 {[%clk
00:08:44]} {[%emt 00:00:28]} 17. Rf2 {[%clk 00:14:03]} {[%emt 00:00:12]} a6
{[%clk 00:08:02]} {[%emt 00:00:52]} 18. Raf1 {[%clk 00:14:10]} {[%emt
00:00:03]} Bh7 {[%clk 00:07:43]} {[%emt 00:00:29]} 19. a4 {[%clk 00:10:48]}
{[%emt 00:03:32]} Ng4 {[%clk 00:07:14]} {[%emt 00:00:38]} 20. Bxg4 {[%clk
00:10:57]} {[%emt 00:00:02]} Qxg4 {[%clk 00:07:23]} {[%emt 00:00:01]} 21. h3
{[%clk 00:11:06]} {[%emt 00:00:01]} Qh5 {[%clk 00:07:20]} {[%emt 00:00:12]} 22.
Kh2 {[%clk 00:11:05]} {[%emt 00:00:12]} a5 {[%clk 00:06:28]} {[%emt 00:01:02]}
23. Ne2 {[%clk 00:10:54]} {[%emt 00:00:20]} Qg6 {[%clk 00:06:23]} {[%emt
00:00:16]} 24. d5 {[%clk 00:10:22]} {[%emt 00:00:43]} c5 {[%clk 00:06:15]}
{[%emt 00:00:17]} 25. Bg3 {[%clk 00:10:31]} Rxf2 {[%clk 00:05:58]} {[%emt
00:00:28]} 26. Rxf2 {[%clk 00:10:40]} Be5 {[%clk 00:05:17]} {[%emt 00:00:51]}
27. Bxe5+ {[%clk 00:08:37]} {[%emt 00:02:13]} dxe5 {[%clk 00:05:26]} {[%emt
00:00:01]} 28. Qc3 {[%clk 00:07:53]} {[%emt 00:00:55]} Qg7 {[%clk 00:05:21]}
{[%emt 00:00:14]} 29. g4 {[%clk 00:07:58]} {[%emt 00:00:05]} b6 {[%clk
00:05:21]} {[%emt 00:00:10]} 30. Ng3 {[%clk 00:08:07]} {[%emt 00:00:01]} Bg6
{[%clk 00:05:07]} {[%emt 00:00:25]} 31. Kg2 {[%clk 00:05:12]} {[%emt 00:03:05]}
e6 {[%clk 00:01:41]} {[%emt 00:03:35]} 32. dxe6 {[%clk 00:05:09]} {[%emt
00:00:14]} Re8 {[%clk 00:01:46]} {[%emt 00:00:05]} 33. Qd2 {[%clk 00:04:04]}
{[%emt 00:01:15]} Rxe6 {[%clk 00:01:40]} {[%emt 00:00:15]} 34. Qd5 {[%clk
00:04:03]} {[%emt 00:00:11]} Re8 {[%clk 00:00:57]} {[%emt 00:00:54]} 35. Nxe4
{[%clk 00:04:06]} {[%emt 00:00:07]} Bxe4+ {[%clk 00:00:57]} {[%emt 00:00:09]}
36. Qxe4 {[%clk 00:04:15]} {[%emt 00:00:01]} h5 {[%clk 00:00:25]} {[%emt
00:00:42]} 37. Rf5 {[%clk 00:04:16]} {[%emt 00:00:09]} hxg4 {[%clk 00:00:26]}
{[%emt 00:00:09]} 38. Rh5+ {[%clk 00:04:23]} {[%emt 00:00:03]} Kg8 {[%clk
00:00:34]} {[%emt 00:00:02]} 39. Qd5+ {[%clk 00:04:32]} {[%emt 00:00:01]} Kf8
{[%clk 00:00:37]} {[%emt 00:00:07]} 40. Rf5+ {[%clk 00:04:41]} {[%emt
00:00:01]} Ke7 {[%clk 00:00:42]} {[%emt 00:00:06]} 41. Qb7+ {[%clk 00:04:50]}
1-0

[Event "British Rapidplay Championship 2023"]
[Site "Mercure Bradford, Bankfield Hotel"]
[Date "2023.04.16"]
[Round "8.3"]
[White "Dong, Bao Nghia"]
[Black "Edwards-Wright, Miles D"]
[Result "1-0"]
[TimeControl "15 minutes plus 10 seconds per move"]
[WhiteElo "2331"]
[BlackElo "1937"]

1. b3 {[%clk 00:15:13]} {[%emt 00:00:07]} d5 {[%clk 00:15:02]} {[%emt
00:00:19]} 2. Bb2 {[%clk 00:15:21]} {[%emt 00:00:01]} Nf6 {[%clk 00:15:09]}
{[%emt 00:00:04]} 3. g3 {[%clk 00:15:27]} {[%emt 00:00:03]} g6 {[%clk
00:15:10]} {[%emt 00:00:09]} 4. Bg2 {[%clk 00:15:33]} {[%emt 00:00:02]} Bg7
{[%clk 00:15:17]} {[%emt 00:00:04]} 5. Nf3 {[%clk 00:15:34]} {[%emt 00:00:09]}
O-O {[%clk 00:15:26]} {[%emt 00:00:02]} 6. O-O {[%clk 00:15:42]} {[%emt
00:00:03]} b6 {[%clk 00:15:09]} {[%emt 00:00:26]} 7. c4 {[%clk 00:15:49]}
{[%emt 00:00:02]} Bb7 {[%clk 00:15:19]} {[%emt 00:00:01]} 8. d3 {[%clk
00:15:51]} {[%emt 00:00:08]} c5 {[%clk 00:14:47]} {[%emt 00:00:42]} 9. Nbd2
{[%clk 00:15:58]} {[%emt 00:00:02]} Nc6 {[%clk 00:14:47]} {[%emt 00:00:12]} 10.
a3 {[%clk 00:15:48]} {[%emt 00:00:19]} d4 {[%clk 00:14:36]} {[%emt 00:00:21]}
11. b4 {[%clk 00:15:40]} {[%emt 00:00:18]} Qd6 {[%clk 00:13:24]} {[%emt
00:01:21]} 12. bxc5 {[%clk 00:15:24]} {[%emt 00:00:27]} bxc5 {[%clk 00:13:32]}
{[%emt 00:00:02]} 13. Rb1 {[%clk 00:15:29]} {[%emt 00:00:05]} Rfb8 {[%clk
00:13:11]} {[%emt 00:00:31]} 14. Ba1 {[%clk 00:15:29]} {[%emt 00:00:09]} Bc8
{[%clk 00:13:06]} {[%emt 00:00:16]} 15. Qa4 {[%clk 00:15:37]} {[%emt 00:00:02]}
Bd7 {[%clk 00:12:15]} {[%emt 00:01:01]} 16. Qa6 {[%clk 00:15:13]} {[%emt
00:00:34]} Rxb1 {[%clk 00:12:08]} {[%emt 00:00:16]} 17. Rxb1 {[%clk 00:15:20]}
{[%emt 00:00:03]} Rb8 {[%clk 00:12:13]} {[%emt 00:00:06]} 18. Rb5 {[%clk
00:13:16]} {[%emt 00:02:15]} Rxb5 {[%clk 00:10:46]} {[%emt 00:01:37]} 19. cxb5
{[%clk 00:13:15]} {[%emt 00:00:10]} Nb8 {[%clk 00:10:51]} {[%emt 00:00:05]} 20.
Qb7 {[%clk 00:11:18]} {[%emt 00:02:07]} Qb6 {[%clk 00:09:59]} {[%emt 00:01:02]}
21. Qxb6 {[%clk 00:11:26]} {[%emt 00:00:02]} axb6 {[%clk 00:10:08]} 22. a4
{[%clk 00:11:35]} {[%emt 00:00:01]} Be6 {[%clk 00:10:12]} {[%emt 00:00:07]} 23.
Nc4 {[%clk 00:11:41]} {[%emt 00:00:03]} Bxc4 {[%clk 00:10:20]} {[%emt
00:00:02]} 24. dxc4 {[%clk 00:11:50]} {[%emt 00:00:01]} Nfd7 {[%clk 00:10:14]}
{[%emt 00:00:17]} 25. Kf1 {[%clk 00:11:19]} {[%emt 00:00:39]} Kf8 {[%clk
00:10:17]} {[%emt 00:00:08]} 26. Bb2 {[%clk 00:11:16]} {[%emt 00:00:12]} h6
{[%clk 00:10:25]} {[%emt 00:00:03]} 27. h4 {[%clk 00:11:12]} {[%emt 00:00:14]}
e5 {[%clk 00:10:32]} {[%emt 00:00:04]} 28. Nd2 {[%clk 00:11:18]} {[%emt
00:00:03]} f5 {[%clk 00:10:34]} {[%emt 00:00:08]} 29. Bb7 {[%clk 00:11:15]}
{[%emt 00:00:13]} Ke7 {[%clk 00:10:36]} {[%emt 00:00:08]} 30. Nb3 {[%clk
00:11:23]} {[%emt 00:00:01]} Kd6 {[%clk 00:10:43]} {[%emt 00:00:04]} 31. Bd5
{[%clk 00:11:21]} {[%emt 00:00:12]} Nf6 {[%clk 00:10:29]} {[%emt 00:00:24]} 32.
Bf7 {[%clk 00:11:29]} {[%emt 00:00:01]} g5 {[%clk 00:10:24]} {[%emt 00:00:16]}
33. hxg5 {[%clk 00:11:33]} {[%emt 00:00:05]} hxg5 {[%clk 00:10:33]} {[%emt
00:00:02]} 34. Ba3 {[%clk 00:10:57]} {[%emt 00:00:46]} Nbd7 {[%clk 00:10:17]}
{[%emt 00:00:26]} 35. Bg6 {[%clk 00:11:04]} {[%emt 00:00:03]} f4 {[%clk
00:10:23]} {[%emt 00:00:04]} 36. gxf4 {[%clk 00:11:12]} {[%emt 00:00:02]} exf4
{[%clk 00:10:25]} {[%emt 00:00:08]} 37. Nxd4 {[%clk 00:11:17]} {[%emt
00:00:05]} Ke7 {[%clk 00:09:40]} {[%emt 00:00:55]} 38. Nf5+ {[%clk 00:10:55]}
{[%emt 00:00:31]} Kf8 {[%clk 00:09:48]} {[%emt 00:00:03]} 39. Bb2 {[%clk
00:11:03]} {[%emt 00:00:21]} 1-0

[Event "British Rapidplay Championship 2023"]
[Site "Mercure Bradford, Bankfield Hotel"]
[Date "2023.04.16"]
[Round "8.4"]
[White "Kisteneva, Liza"]
[Black "Makkar, Rajat"]
[Result "0-1"]
[TimeControl "15 minutes plus 10 seconds per move"]
[WhiteElo "2040"]
[BlackElo "2297"]

1. c4 {[%clk 00:15:17]} {[%emt 00:00:02]} c6 {[%clk 00:15:20]} 2. Nc3 {[%clk
00:15:25]} {[%emt 00:00:02]} d5 {[%clk 00:15:28]} {[%emt 00:00:02]} 3. cxd5
{[%clk 00:15:17]} {[%emt 00:00:18]} cxd5 {[%clk 00:15:37]} {[%emt 00:00:01]} 4.
d4 {[%clk 00:15:25]} {[%emt 00:00:01]} e5 {[%clk 00:15:16]} {[%emt 00:00:31]} 5.
dxe5 {[%clk 00:14:41]} {[%emt 00:00:54]} d4 {[%clk 00:15:26]} 6. Qa4+ {[%clk
00:14:00]} {[%emt 00:00:51]} Nc6 {[%clk 00:14:52]} {[%emt 00:00:44]} 7. Ne4
{[%clk 00:14:07]} {[%emt 00:00:04]} Bf5 {[%clk 00:14:42]} {[%emt 00:00:19]} 8.
Nd6+ {[%clk 00:12:28]} {[%emt 00:01:48]} Bxd6 {[%clk 00:14:50]} {[%emt
00:00:02]} 9. exd6 {[%clk 00:12:37]} {[%emt 00:00:01]} Qxd6 {[%clk 00:14:41]}
{[%emt 00:00:20]} 10. Bd2 {[%clk 00:11:49]} {[%emt 00:00:58]} Nf6 {[%clk
00:14:48]} {[%emt 00:00:03]} 11. Nf3 {[%clk 00:11:35]} {[%emt 00:00:24]} O-O
{[%clk 00:14:56]} {[%emt 00:00:02]} 12. g3 {[%clk 00:10:27]} {[%emt 00:01:17]}
d3 {[%clk 00:15:03]} {[%emt 00:00:03]} 13. Qf4 {[%clk 00:09:42]} {[%emt
00:00:55]} Qd5 {[%clk 00:14:29]} {[%emt 00:00:44]} 14. Bg2 {[%clk 00:09:29]}
{[%emt 00:00:23]} dxe2 {[%clk 00:14:21]} {[%emt 00:00:18]} 15. Nh4 {[%clk
00:08:39]} {[%emt 00:00:59]} Be4 {[%clk 00:14:21]} {[%emt 00:00:10]} 16. f3
{[%clk 00:07:44]} {[%emt 00:01:06]} Ne5 {[%clk 00:13:08]} {[%emt 00:01:23]} 17.
Kxe2 {[%clk 00:06:58]} {[%emt 00:00:55]} Qc4+ {[%clk 00:12:31]} {[%emt
00:00:48]} 18. Ke3 {[%clk 00:06:13]} {[%emt 00:00:55]} Nd5+ {[%clk 00:12:32]}
{[%emt 00:00:09]} 0-1